bitfinex/quotes_SOLUSD_20250611
["timestamp","ask_amount","ask_price","bid_price","bid_amount"]
[1749647774253,146.7,166.57,166.54,0.28432314]
[1749647774454,12.1,166.56,166.55,0.28432314]
[1749647775382,146.7,166.57,166.55,0.28432314]
[1749647775687,146.7,166.57,166.54,13.79448181]
[1749647775688,12.1,166.56,166.54,0.28432314]
[1749647776486,26.0,166.54,166.53,0.28432314]
[1749647776882,12.1,166.53,166.44,1.6108]
[1749647777065,12.1,166.52,166.49,13.79448181]
[1749647777263,12.1,166.51,166.49,13.79448181]
[1749647777874,12.1,166.51,166.5,0.28432314]
[1749647778194,12.1,166.51,166.5,13.93664338]
[1749647778365,12.1,166.51,166.5,14.07880495]
[1749647778986,26.0,166.54,166.51,0.14216157]
[1749647779289,12.1,166.56,166.54,0.14216157]
[1749647779586,12.1,166.56,166.55,14.07880495]
[1749647779967,6.0,166.62,166.56,0.28432314]
[1749647780161,12.1,166.65,166.62,0.28432314]
[1749647780364,12.1,166.65,166.64,14.07880495]
[1749647780565,12.1,166.65,166.64,0.28432314]
[1749647780883,12.1,166.65,166.64,14.07880495]
[1749647781084,12.1,166.65,166.64,27.87328676]
[1749647782978,6.0,166.7,166.65,0.28432314]
[1749647783177,146.7,166.75,166.7,0.28432314]
[1749647783498,1.5444,166.76,166.74,13.79448181]
[1749647783860,26.0,166.75,166.74,14.07880495]
[1749647784091,24.501,166.78,166.74,14.07880495]
[1749647784464,26.0,166.75,166.74,14.07880495]
[1749647784682,24.501,166.78,166.74,14.07880495]
[1749647785193,26.0,166.75,166.74,0.28432314]
[1749647785375,26.0,166.75,166.74,14.07880495]
[1749647787273,26.0,166.75,166.74,0.28432314]
[1749647787632,26.0,166.75,166.74,14.07880495]
[1749647788097,24.501,166.78,166.75,0.28432314]
[1749647788268,24.501,166.78,166.76,13.79448181]
[1749647788768,6.0,166.78,166.77,14.07880495]
[1749647789101,26.0,166.79,166.78,0.28432314]
[1749647789285,6.4664,166.82,166.78,0.28432314]
[1749647789286,6.4664,166.82,166.78,14.07880495]
[1749647789483,6.4664,166.82,166.8,0.28432314]
[1749647792914,26.0,166.81,166.8,0.28432314]
[1749647793217,12.1,166.84,166.81,0.28432314]
[1749647793394,12.1,166.84,166.83,14.07880495]
[1749647793590,6.0,166.86,166.84,0.28432314]
[1749647795519,26.0,166.82,166.78,13.79448181]
[1749647795722,13.79448181,166.82,166.77,13.79448181]
[1749647796009,39.79448181,166.79,166.74,13.79448181]
[1749647797014,39.79448181,166.79,166.75,0.28432314]
[1749647797189,48.9989964,166.79,166.74,22.9989964]
[1749647797380,48.9989964,166.79,166.75,0.28432314]
[1749647797585,48.9989964,166.79,166.67,18.64964886]
[1749647797586,26.0,166.76,166.73,22.9989964]
[1749647797985,26.0,166.76,166.74,0.28432314]
[1749647798400,26.0,166.79,166.76,0.28432314]
[1749647798593,26.0,166.79,166.76,23.28331954]
[1749647799613,26.0,166.79,166.76,0.28432314]
[1749647799908,29.0762964,166.8,166.76,0.28432314]
[1749647799909,48.9989964,166.78,166.76,0.28432314]
[1749647800289,26.0,166.78,166.76,0.28432314]
[1749647800508,48.9989964,166.78,166.76,0.28432314]
[1749647800710,48.9989964,166.78,166.73,22.9989964]
[1749647800885,12.1,166.77,166.73,22.9989964]
[1749647801096,12.1,166.77,166.74,0.28432314]
[1749647801617,12.1,166.77,166.73,22.9989964]
[1749647801618,26.0,166.73,166.67,1.5804]
[1749647801912,41.64864526,166.73,166.68,22.9989964]
[1749647802089,22.9989964,166.72,166.67,22.9989964]
[1749647802294,22.9989964,166.72,166.63,1.5567]
[1749647802494,41.64864526,166.73,166.69,0.28432314]
[1749647802700,41.64864526,166.73,166.68,22.9989964]
[1749647802905,41.64864526,166.73,166.69,0.28432314]
[1749647803117,41.64864526,166.73,166.68,22.9989964]
[1749647803420,41.64864526,166.73,166.69,22.9989964]
[1749647803421,26.0,166.73,166.69,22.9989964]
[1749647803605,26.0,166.73,166.7,0.28432314]
[1749647804313,22.9989964,166.71,166.67,0.28432314]
[1749647804714,22.9989964,166.72,166.67,23.28331954]
[1749647804891,22.9989964,166.72,166.67,0.14216157]
[1749647805094,22.9989964,166.72,166.67,23.14115797]
[1749647805294,22.9989964,166.72,166.68,0.14216157]
[1749647806503,12.1,166.71,166.68,0.14216157]
[1749647808023,53.74864526,166.7,166.66,0.28432314]
[1749647808312,30.74964886,166.7,166.66,23.28331954]
[1749647808520,30.74964886,166.7,166.66,23.14115797]
[1749647808698,30.74964886,166.7,166.67,0.14216157]
[1749647810151,12.1,166.7,166.68,0.14216157]
[1749647812929,12.1,166.7,166.68,0.28432314]
[1749647814619,12.1,166.69,166.68,0.28432314]
[1749647814813,146.7,166.71,166.68,23.28331954]
[1749647815037,146.7,166.71,166.7,23.28331954]
[1749647816318,146.7,166.76,166.71,0.28432314]
[1749647816534,146.7,166.76,166.75,23.28331954]
[1749647817738,26.0,166.78,166.75,23.28331954]
[1749647817937,146.7,166.81,166.78,0.28432314]
[1749647818137,146.7,166.8,166.78,23.28331954]
[1749647818952,146.7,166.8,166.78,0.28432314]
[1749647820243,12.1,166.79,166.77,23.28331954]
[1749647820441,12.1,166.78,166.77,23.28331954]
[1749647820939,158.8,166.8,166.77,23.28331954]
[1749647821144,158.8,166.8,166.79,22.9989964]
[1749647821443,158.8,166.8,166.77,0.28432314]
[1749647821941,184.8,166.8,166.78,0.28432314]
[1749647822139,184.8,166.8,166.79,0.28432314]
[1749647823923,184.8,166.8,166.79,23.28331954]
[1749647824129,158.8,166.8,166.79,23.28331954]
[1749647825035,184.8,166.8,166.74,1.571]
[1749647825240,12.1,166.79,166.76,0.28432314]
[1749647825437,12.1,166.79,166.76,14.08078799]
[1749647825644,12.1,166.79,166.73,0.14216157]
[1749647825848,12.1,166.79,166.73,0.28432314]
[1749647826228,12.1,166.79,166.78,14.08078799]
[1749647826448,12.1,166.84,166.78,14.08078799]
[1749647826650,12.1,166.84,166.83,14.08078799]
[1749647826837,146.7,166.85,166.84,0.28432314]
[1749647828026,146.7,166.85,166.84,14.08078799]
[1749647828247,146.7,166.85,166.84,0.28432314]
[1749647829127,146.7,166.85,166.83,0.28432314]
[1749647829529,146.7,166.89,166.84,23.26014651]
[1749647829735,146.7,166.89,166.85,0.14216157]
[1749647830041,146.7,166.89,166.88,0.28432314]
[1749647830447,146.7,166.89,166.88,23.26014651]
[1749647830663,146.7,166.89,166.88,0.28432314]
[1749647831463,172.7,166.89,166.88,0.28432314]
[1749647831942,172.7,166.89,166.85,23.26014651]
[1749647832145,172.7,166.89,166.87,0.28432314]
[1749647833860,184.8,166.89,166.87,0.28432314]
[1749647834066,12.1,166.89,166.88,23.26014651]
[1749647836229,35.07582337,166.89,166.81,1.6566]
[1749647836434,12.1,166.88,166.81,22.97582337]
[1749647836634,38.1,166.88,166.85,22.97582337]
[1749647836832,38.1,166.88,166.84,22.97582337]
[1749647837034,38.1,166.88,166.85,0.28432314]
[1749647837268,38.1,166.88,166.84,0.28432314]
[1749647837767,12.1,166.88,166.84,23.26014651]
[1749647838055,12.1,166.88,166.84,0.28432314]
[1749647838270,22.97582337,166.86,166.81,22.97582337]
[1749647838442,22.97582337,166.86,166.82,0.28432314]
[1749647838639,22.97582337,166.86,166.82,0.14216157]
[1749647838850,12.1,166.88,166.82,0.14216157]
[1749647839043,22.97582337,166.87,166.83,0.14216157]
[1749647839554,22.97582337,166.86,166.83,0.14216157]
[1749647840192,22.97582337,166.84,166.77,1.6566]
[1749647840366,22.97582337,166.81,166.78,0.28432314]
[1749647840537,22.97582337,166.82,166.78,0.28432314]
[1749647840738,18.64964886,166.86,166.8,0.28432314]
[1749647841041,48.97582337,166.86,166.82,0.28432314]
[1749647842056,12.1,166.88,166.82,0.28432314]
[1749647842361,12.1,166.87,166.86,22.97582337]
[1749647842566,12.1,166.87,166.86,23.26014651]
[1749647842746,12.1,166.87,166.86,0.28432314]
[1749647843068,12.1,166.89,166.87,0.28432314]
[1749647843249,22.97582337,166.94,166.89,0.28432314]
[1749647843565,32.6024,166.95,166.89,0.28432314]
[1749647843866,22.97582337,166.93,166.89,0.28432314]
[1749647845068,26.0,166.96,166.89,23.26014651]
[1749647845273,22.97582337,166.94,166.89,23.26014651]
[1749647845483,26.0,166.96,166.91,0.28432314]
[1749647845769,22.97582337,166.95,166.91,0.28432314]
[1749647846150,5.92,166.97,166.91,0.28432314]
[1749647846356,26.0,166.96,166.91,0.28432314]
[1749647846574,48.97582337,166.96,166.91,23.26014651]
[1749647846742,5.92,166.97,166.93,23.26014651]
[1749647846948,22.97582337,166.97,166.93,0.28432314]
[1749647847454,22.97582337,166.98,166.93,23.26014651]
[1749647847637,22.97582337,166.98,166.9,0.14216157]
[1749647847638,146.7,167.02,166.95,0.28432314]
[1749647847844,48.97582337,166.99,166.95,0.28432314]
[1749647848444,26.0,166.99,166.95,0.28432314]
[1749647848650,48.97582337,167.01,166.97,0.28432314]
[1749647849047,26.0,167.01,166.97,0.28432314]
[1749647849260,5.92,167.05,166.99,0.28432314]
[1749647849558,22.97582337,167.03,166.99,0.28432314]
[1749647849766,22.97582337,167.02,166.99,0.28432314]
[1749647850382,31.92,167.05,166.99,0.28432314]
[1749647850581,22.97582337,167.02,166.99,0.28432314]
[1749647850756,22.97582337,167.0,166.99,0.28432314]
[1749647851159,26.0,167.02,166.99,0.28432314]
[1749647851369,26.0,167.02,166.94,0.28432314]
[1749647851370,22.97582337,167.0,166.94,0.28432314]
[1749647851572,22.97582337,167.0,166.86,10.64736375]
[1749647851573,18.64964886,166.98,166.88,1.5443]
[1749647851771,18.64964886,166.98,166.89,22.97582337]
[1749647852061,22.97582337,166.96,166.91,23.26014651]
[1749647852451,22.97582337,166.95,166.9,22.97582337]
[1749647852845,57.6871,166.99,166.91,0.28432314]
[1749647853067,57.6871,166.99,166.91,0.14216157]
[1749647853264,22.97582337,166.95,166.91,0.14216157]
[1749647853572,22.97582337,166.97,166.93,0.28432314]
[1749647853767,22.97582337,166.99,166.95,0.28432314]
[1749647855399,22.97582337,166.98,166.95,0.28432314]
[1749647855682,26.0,167.0,166.9,0.42648471]
[1749647855851,26.0,167.0,166.95,0.28432314]
[1749647856057,22.97582337,166.98,166.95,0.28432314]
[1749647856480,26.0,167.0,166.95,23.26014651]
[1749647856481,48.97582337,167.0,166.95,23.26014651]
[1749647856777,48.97582337,167.0,166.97,0.28432314]
[1749647856778,22.97582337,167.0,166.97,0.28432314]
[1749647857168,31.98731172,167.02,166.97,0.28432314]
[1749647857479,22.97582337,166.99,166.97,0.28432314]
[1749647857863,31.98731172,167.02,166.97,0.28432314]
[1749647858053,22.97582337,166.98,166.97,0.28432314]
[1749647858569,22.97582337,166.98,166.94,0.28432314]
[1749647859573,22.97582337,166.96,166.88,1.5443]
[1749647859776,22.97582337,166.94,166.89,22.97582337]
[1749647860080,22.97582337,166.92,166.84,1.6184]
[1749647860291,22.97582337,166.92,166.86,22.97582337]
[1749647860583,22.97582337,166.92,166.87,0.28432314]
[1749647860770,48.97582337,166.94,166.9,0.14216157]
[1749647861176,22.97582337,166.93,166.9,0.14216157]
[1749647861389,22.97582337,166.91,166.85,22.97582337]
[1749647861684,22.97582337,166.89,166.84,24.59422337]
[1749647861886,22.97582337,166.91,166.87,0.28432314]
[1749647862056,26.0,166.92,166.88,0.28432314]
[1749647862382,26.0,166.9,166.88,23.26014651]
[1749647862956,26.0,166.9,166.88,0.28432314]
[1749647863260,22.97582337,166.91,166.88,0.28432314]
[1749647863475,26.0,166.9,166.86,22.97582337]
[1749647863669,26.0,166.9,166.87,0.28432314]
[1749647863967,26.0,166.9,166.87,22.97582337]
[1749647864174,26.0,166.9,166.87,0.28432314]
[1749647864692,160.3368,166.96,166.89,23.26014651]
[1749647864989,12.1,166.96,166.93,23.26014651]
[1749647865161,12.1,166.96,166.95,0.28432314]
[1749647865973,29.30382337,167.0,166.95,23.26014651]
[1749647866377,26.0,166.97,166.95,23.26014651]
[1749647867465,26.0,166.99,166.95,23.26014651]
[1749647868198,48.97582337,166.99,166.94,0.28432314]
[1749647868373,26.0,166.99,166.94,0.28432314]
[1749647868878,48.97582337,166.99,166.94,0.28432314]
[1749647869079,26.0,166.99,166.94,23.26014651]
[1749647869282,48.97582337,166.99,166.94,23.26014651]
[1749647869993,26.0,166.99,166.94,23.26014651]
[1749647870213,48.97582337,166.99,166.94,23.26014651]
[1749647870405,26.0,166.99,166.96,0.28432314]
[1749647871074,48.97582337,166.99,166.96,0.28432314]
[1749647871271,22.97582337,166.99,166.96,0.28432314]
[1749647871482,26.0,166.98,166.96,0.28432314]
[1749647872563,26.0,166.98,166.94,22.97582337]
[1749647872768,12.1,167.01,166.97,23.26014651]
[1749647872969,18.64964886,167.03,166.98,22.97582337]
[1749647873198,26.0,166.97,166.95,22.97582337]
[1749647873498,27.1652797,167.04,166.96,23.11798494]
[1749647873499,48.97582337,167.01,166.96,23.11798494]
[1749647874289,26.0,166.99,166.96,0.14216157]
[1749647874597,26.0,166.99,166.96,23.11798494]
[1749647875872,26.0,166.99,166.98,22.97582337]
[1749647876072,18.64964886,167.03,166.98,23.26014651]
[1749647876296,26.0,167.01,166.99,0.28432314]
[1749647876590,26.0,167.01,167.0,23.26014651]
[1749647877000,6.2122,167.04,167.01,0.28432314]
[1749647877185,6.2122,167.04,167.01,23.26014651]
[1749647877376,26.0,167.02,167.01,23.26014651]
[1749647879596,26.0,167.02,167.01,0.28432314]
[1749647879798,26.0,167.02,167.0,22.97582337]
[1749647880001,26.0,167.02,167.0,0.28432314]
[1749647880202,26.0,167.01,166.92,1.5395]
[1749647880498,26.0,167.01,166.98,22.97582337]
[1749647881592,26.0,167.01,166.97,0.28432314]
[1749647881797,26.0,167.01,166.99,22.97582337]
[1749647882695,26.0,167.01,166.98,22.97582337]
[1749647883881,26.0,167.01,166.99,0.28432314]
[1749647884077,26.0,167.01,166.99,23.26014651]
[1749647885502,12.1,167.0,166.99,0.28432314]
[1749647885708,12.1,167.0,166.99,23.26014651]
[1749647886501,26.0,167.01,166.99,23.26014651]
[1749647887193,26.0,167.01,166.98,22.97582337]
[1749647887508,26.0,166.99,166.98,0.28432314]
[1749647887892,26.0,167.0,166.98,0.28432314]
[1749647888795,38.1,167.02,167.0,0.28432314]
[1749647888989,12.1,167.02,167.01,22.97582337]
[1749647889387,146.7,167.03,167.02,0.28432314]
[1749647889614,146.7,167.03,167.02,23.26014651]
[1749647893427,146.7,167.03,167.02,0.28432314]
[1749647894901,146.7,167.03,167.02,23.26014651]
[1749647895304,146.7,167.03,167.02,0.28432314]
[1749647895620,146.7,167.03,167.01,13.7523966]
[1749647895621,160.4523966,167.03,166.98,13.7523966]
[1749647895920,13.7523966,167.02,166.98,0.28432314]
[1749647896415,26.0,167.0,166.92,1.5395]
[1749647896593,26.0,167.0,166.95,13.7523966]
[1749647896791,26.0,167.0,166.96,13.7523966]
[1749647897021,26.0,167.0,166.98,0.28432314]
[1749647897394,146.7,167.01,166.98,0.28432314]
[1749647897599,146.7,167.01,166.98,23.21640155]
[1749647897806,172.7,167.06,167.01,0.28432314]
[1749647898103,172.7,167.06,167.01,23.21640155]
[1749647898312,195.63207841,167.06,167.01,23.21640155]
[1749647898510,12.1,167.02,167.01,23.21640155]
[1749647899417,12.1,167.02,167.01,0.28432314]
[1749647901225,12.1,167.02,167.01,23.21640155]
[1749647901424,12.1,167.02,167.01,0.28432314]
[1749647901625,48.93207841,167.05,167.01,0.28432314]
[1749647901925,26.0,167.05,167.01,23.21640155]
[1749647902618,26.0,167.05,167.02,22.93207841]
[1749647903414,26.0,167.05,167.01,23.21640155]
[1749647904009,26.0,167.05,167.02,22.93207841]
[1749647904213,26.0,167.05,167.01,0.28432314]
[1749647904426,146.7,167.06,167.04,22.93207841]
[1749647905414,146.7,167.06,167.03,0.28432314]
[1749647905612,146.7,167.06,167.04,22.93207841]
[1749647906121,146.7,167.06,167.03,0.28432314]
[1749647907033,146.7,167.06,167.04,22.93207841]
[1749647907396,146.7,167.06,167.03,23.21640155]
[1749647908722,146.7,167.06,167.04,0.28432314]
[1749647909226,12.1,167.05,167.04,0.28432314]
[1749647909428,12.1,167.04,166.95,1.5101]
[1749647909602,22.93207841,167.0,166.91,1.5101]
[1749647909802,35.03207841,166.99,166.91,1.5101]
[1749647910109,22.93207841,166.98,166.93,22.93207841]
[1749647910328,22.93207841,166.98,166.94,0.28432314]
[1749647910630,22.93207841,166.97,166.94,0.28432314]
[1749647910805,26.0,166.97,166.94,0.28432314]
[1749647911129,26.0,166.97,166.88,6.4243]
[1749647911625,26.0,166.97,166.94,0.28432314]
[1749647912127,26.0,166.97,166.94,23.07423998]
[1749647912331,26.0,166.97,166.95,0.14216157]
[1749647913105,48.93207841,166.97,166.94,0.14216157]
[1749647913304,48.93207841,166.97,166.92,22.93207841]
[1749647913528,48.93207841,166.97,166.93,0.14216157]
[1749647913802,48.93207841,166.97,166.93,0.28432314]
[1749647914225,26.0,166.96,166.93,0.28432314]
[1749647914613,26.0,166.96,166.95,23.21640155]
[1749647914816,26.0,166.96,166.95,0.28432314]
[1749647915918,26.0,166.96,166.94,0.28432314]
[1749647916331,26.0,166.96,166.95,23.21640155]
[1749647916525,26.0,166.96,166.95,0.28432314]
[1749647917632,26.0,166.96,166.95,14.04878845]
[1749647918139,26.0,166.96,166.95,0.28432314]
[1749647918512,26.0,166.96,166.95,14.04878845]
[1749647920339,26.0,166.96,166.95,0.28432314]
[1749647920726,26.0,166.96,166.95,14.04878845]
[1749647921040,26.0,166.96,166.95,0.28432314]
[1749647921219,26.0,166.96,166.93,0.28432314]
[1749647921432,26.0,166.96,166.93,0.14216157]
[1749647921620,26.0,166.96,166.94,14.04878845]
[1749647921820,26.0,166.96,166.94,13.90662688]
[1749647922037,12.1,166.95,166.94,13.90662688]
[1749647922242,12.1,166.95,166.94,14.04878845]
[1749647923125,12.1,166.95,166.94,0.28432314]
[1749647924237,12.1,166.95,166.94,0.14216157]
[1749647925056,12.1,166.95,166.93,0.14216157]
[1749647926921,12.1,166.94,166.93,0.14216157]
[1749647927141,12.1,166.94,166.92,0.28432314]
[1749647927738,12.1,166.94,166.92,14.04878845]
[1749647928640,12.1,166.94,166.92,0.28432314]
[1749647929761,12.1,166.93,166.92,0.28432314]
[1749647929922,12.1,166.92,166.87,1.5101]
[1749647930123,13.76446531,166.93,166.88,13.76446531]
[1749647930354,26.0,166.94,166.9,13.76446531]
[1749647930528,26.0,166.94,166.92,0.14216157]
[1749647930729,12.1,166.93,166.92,0.28432314]
[1749647930931,12.1,166.93,166.92,14.04878845]
[1749647931447,13.76446531,166.99,166.92,14.04878845]
[1749647931628,12.1,166.98,166.95,0.28432314]
[1749647931823,12.1,166.98,166.93,13.76446531]
[1749647932023,13.76446531,166.99,166.94,0.28432314]
[1749647932251,158.8,166.98,166.94,0.28432314]
[1749647932830,158.8,166.98,166.93,13.76446531]
[1749647932831,13.76446531,166.98,166.87,27.5101]
[1749647933034,13.76446531,166.98,166.93,13.76446531]
[1749647933231,18.64964886,166.99,166.94,14.04878845]
[1749647933437,13.76446531,166.99,166.94,14.04878845]
[1749647933750,26.0,167.0,166.94,14.04878845]
[1749647933923,39.76446531,167.0,166.96,0.28432314]
[1749647935429,26.0,166.97,166.96,0.28432314]
[1749647936330,26.0,166.98,166.95,0.28432314]
[1749647938251,26.0,166.98,166.95,14.04878845]
[1749647938552,26.0,166.98,166.89,0.14216157]
[1749647938553,26.0,167.0,166.97,0.28432314]
[1749647938733,38.1,167.0,166.97,0.28432314]
[1749647939627,51.86446531,167.0,166.97,0.28432314]
[1749647940455,38.1,167.0,166.97,0.28432314]
[1749647941752,12.1,166.99,166.96,0.28432314]
[1749647943144,25.86446531,166.99,166.96,0.28432314]
[1749647943747,158.8,166.98,166.95,0.28432314]
[1749647943949,158.8,166.98,166.96,13.76446531]
[1749647944346,158.8,166.98,166.97,14.04878845]
[1749647944554,0.14216157,167.05,166.97,14.04878845]
[1749647944555,146.7,167.04,166.98,0.28432314]
[1749647944745,158.8,167.04,167.0,13.76446531]
[1749647945154,158.8,167.04,167.01,0.28432314]
[1749647945863,158.8,167.04,167.01,14.04878845]
[1749647945864,12.1,167.03,167.01,14.04878845]
[1749647946332,12.1,167.07,167.02,14.04878845]
[1749647946534,12.1,167.07,167.02,0.28432314]
[1749647946741,25.86446531,167.07,167.04,0.28432314]
[1749647946932,13.76446531,167.06,167.02,0.28432314]
[1749647947139,12.1,167.07,167.02,0.28432314]
[1749647947345,12.1,167.07,167.02,14.04878845]
[1749647947346,51.86446531,167.07,167.02,14.04878845]
[1749647948063,25.86446531,167.07,167.02,14.04878845]
[1749647948439,51.86446531,167.07,167.02,14.04878845]
[1749647948845,38.1,167.07,167.02,14.04878845]
[1749647949363,38.1,167.07,167.04,0.28432314]
[1749647951164,38.1,167.07,166.99,0.28432314]
[1749647951165,51.86446531,167.07,166.99,0.28432314]
[1749647951352,26.0,167.04,167.02,0.28432314]
[1749647951552,12.1,167.03,167.02,14.04878845]
[1749647951873,12.1,167.03,167.02,0.28432314]
[1749647952163,26.0,167.03,167.02,0.28432314]
[1749647952370,26.0,167.03,167.01,0.28432314]
[1749647952664,26.0,166.99,166.94,7.8033]
[1749647952969,26.0,166.99,166.97,13.76446531]
[1749647953342,26.0,166.99,166.98,14.04878845]
[1749647953542,12.1,167.02,166.98,14.04878845]
[1749647953761,12.1,167.02,167.0,0.28432314]
[1749647957342,12.1,167.02,166.99,0.28432314]
[1749647957539,39.76446531,167.03,166.94,1.5867]
[1749647957540,26.0,167.0,166.94,1.5867]
[1749647957743,13.76446531,166.98,166.92,13.76446531]
[1749647958045,25.86446531,166.97,166.92,13.76446531]
[1749647958246,12.1,166.97,166.93,13.76446531]
[1749647958759,12.1,166.97,166.94,0.28432314]
[1749647959083,12.1,166.97,166.94,0.14216157]
[1749647961040,25.86446531,166.97,166.94,0.14216157]
[1749647961545,25.86446531,166.96,166.91,0.28432314]
[1749647961750,13.76446531,166.93,166.88,13.76446531]
[1749647962148,13.76446531,166.93,166.89,0.28432314]
[1749647962751,12.1,166.95,166.9,13.76446531]
[1749647963067,12.1,166.95,166.92,0.28432314]
[1749647963476,25.86446531,166.95,166.92,0.28432314]
[1749647965664,25.86446531,166.95,166.88,0.28432314]
[1749647965862,25.86446531,166.95,166.91,0.14216157]
[1749647966045,25.86446531,166.95,166.91,0.28432314]
[1749647966872,25.86446531,166.94,166.91,0.28432314]
[1749647967174,13.76446531,166.92,166.87,13.76446531]
[1749647967546,25.86446531,166.93,166.88,0.14216157]
[1749647967746,13.76446531,166.92,166.88,0.14216157]
[1749647967976,13.76446531,166.92,166.88,0.28432314]
[1749647968282,12.1,166.93,166.89,0.28432314]
[1749647968484,25.86446531,166.93,166.89,0.28432314]
[1749647969052,12.1,166.93,166.89,14.04878845]
[1749647969975,12.1,166.93,166.91,0.28432314]
[1749647970561,12.1,166.93,166.92,14.04878845]
[1749647970751,26.0,166.93,166.92,14.04878845]
[1749647971253,146.7,166.96,166.92,14.04878845]
[1749647971568,172.7,166.96,166.92,14.04878845]
[1749647973072,172.7,166.96,166.94,13.90662688]
[1749647973274,146.7,166.96,166.95,14.04878845]
[1749647974178,12.1,166.97,166.96,0.14216157]
[1749647974470,12.1,166.97,166.96,14.04878845]
[1749647976055,12.1,166.97,166.96,0.28432314]
[1749647976269,12.1,166.97,166.96,14.04878845]
[1749647980285,13.76446531,167.01,166.97,0.28432314]
[1749647982856,13.76446531,166.99,166.94,13.76446531]
[1749647983057,13.76446531,166.99,166.89,1.6223]
[1749647983058,13.76446531,166.97,166.92,13.76446531]
[1749647983357,13.76446531,166.97,166.93,0.28432314]
[1749647983862,25.86446531,166.98,166.93,13.76446531]
[1749647984080,25.86446531,166.98,166.94,0.14216157]
[1749647984273,25.86446531,166.98,166.94,0.28432314]
[1749647985073,26.0,166.94,166.83,1.5772]
[1749647985268,25.86446531,166.93,166.87,13.76446531]
[1749647985777,12.1,166.93,166.87,13.76446531]
[1749647985992,25.86446531,166.93,166.87,13.76446531]
[1749647986364,25.86446531,166.93,166.88,0.28432314]
[1749647986756,13.76446531,166.92,166.85,0.42648471]
[1749647986981,13.76446531,166.92,166.87,0.28432314]
[1749647987667,13.76446531,166.9,166.83,1.5772]
[1749647987873,13.76446531,166.88,166.83,15.34166531]
[1749647988076,13.76446531,166.88,166.84,0.28432314]
[1749647988276,13.76446531,166.88,166.82,13.76446531]
[1749647988475,13.76446531,166.88,166.84,0.28432314]
[1749647988985,13.76446531,166.88,166.83,13.76446531]
[1749647989190,13.76446531,166.88,166.84,0.28432314]
[1749647989397,13.76446531,166.88,166.84,0.14216157]
[1749647989892,13.76446531,166.88,166.84,0.28432314]
[1749647992482,13.76446531,166.87,166.83,0.28432314]
[1749647993066,13.76446531,166.88,166.83,14.04878845]
[1749647993677,13.76446531,166.87,166.83,0.28432314]
[1749647994486,13.76446531,166.84,166.75,7.78506916]
[1749647994695,13.76446531,166.84,166.8,0.14216157]
[1749647994893,13.76446531,166.85,166.81,0.14216157]
[1749647995597,26.0,166.87,166.81,0.14216157]
[1749647995598,13.76446531,166.86,166.81,13.90662688]
[1749647995893,24.78704886,166.9,166.86,0.14216157]
[1749647995894,45.90186531,166.9,166.86,0.14216157]
[1749647996584,32.1374,166.9,166.86,0.14216157]
[1749647996770,13.76446531,166.92,166.88,0.28432314]
[1749647996970,1.5747,166.93,166.88,0.28432314]
[1749647997173,1.6385,166.97,166.91,0.28432314]
[1749647997384,13.76446531,166.95,166.91,0.28432314]
[1749647997570,39.76446531,166.96,166.91,14.04878845]
[1749647997769,13.76446531,166.96,166.91,14.04878845]
[1749647998200,15.40296531,166.97,166.93,0.28432314]
[1749647998381,1.6385,166.97,166.93,0.28432314]
[1749647998694,15.40296531,166.97,166.93,0.28432314]
[1749647999187,32.1335,166.98,166.93,14.04878845]
[1749647999188,19.89796531,166.98,166.93,14.04878845]
[1749647999588,6.1335,166.98,166.93,14.04878845]
[1749648000793,19.89796531,166.98,166.93,0.28432314]
[1749648002394,19.89796531,166.98,166.93,14.04878845]
[1749648003088,19.89796531,166.98,166.89,0.42648471]
[1749648003301,19.89796531,166.98,166.94,0.28432314]
[1749648004189,13.76446531,166.98,166.94,0.28432314]
[1749648004507,26.0,167.0,166.96,0.28432314]
[1749648004681,26.0,167.0,166.96,14.04878845]
[1749648004882,26.0,167.0,166.96,0.28432314]
[1749648005092,26.0,166.98,166.96,0.28432314]
[1749648006111,26.0,166.97,166.96,0.28432314]
[1749648006678,26.0,166.97,166.96,14.04878845]